fUSD/lending_fUSD_20240427
["ID","MTS","AMOUNT","RATE_DAILY","PERIOD"]
[323764786,1714257044443,-500.0,0.00019178,2]
[323764787,1714257044453,-500.0,0.00019178,2]
[323764788,1714257044465,-500.0,0.00019178,2]
[323764789,1714257044475,-274.45484901,0.00019178,2]
[323764790,1714257044655,-500.0,0.00019178,2]
[323764791,1714257044665,-187.65304281,0.00019178,2]
[323764792,1714257044674,-500.0,0.00019178,2]
[323764793,1714257044684,-500.0,0.00019178,2]
[323764794,1714257044693,-500.0,0.00019178,2]
[323764795,1714257044702,-500.0,0.00019178,2]
[323764796,1714257044711,-500.0,0.00019178,2]
[323764797,1714257044719,-500.0,0.00019178,2]
[323764798,1714257044728,-500.0,0.00019178,2]
[323764799,1714257044737,-500.0,0.00019178,2]
[323764800,1714257044746,-500.0,0.00019178,2]
[323764801,1714257044754,-500.0,0.00019178,2]
[323764802,1714257044764,-500.0,0.00019178,2]
[323764803,1714257044774,-500.0,0.00019178,2]
[323764804,1714257044783,-500.0,0.00019178,2]
[323764805,1714257044791,-500.0,0.00019178,2]
[323764806,1714257044800,-500.0,0.00019178,2]
[323764807,1714257044809,-500.0,0.00019178,2]
[323764808,1714257044818,-500.0,0.00019178,2]
[323764809,1714257044827,-500.0,0.00019178,2]
[323764810,1714257044837,-500.0,0.00019178,2]
[323764811,1714257044845,-500.0,0.00019178,2]
[323764812,1714257044854,-500.0,0.00019178,2]
[323764813,1714257044863,-500.0,0.00019178,2]
[323764814,1714257044872,-500.0,0.00019178,2]
[323764815,1714257044880,-500.0,0.00019178,2]
[323764816,1714257044890,-500.0,0.00019178,2]
[323764817,1714257044899,-500.0,0.00019178,2]
[323764818,1714257044908,-500.0,0.00019178,2]
[323764819,1714257044917,-500.0,0.00019178,2]
[323764820,1714257044928,-464.53066637,0.00019178,2]
[323764821,1714257044938,-500.0,0.00019178,2]
[323764822,1714257044948,-500.0,0.00019178,2]
[323764823,1714257044957,-500.0,0.00019178,2]
[323764824,1714257044966,-500.0,0.00019178,2]
[323764825,1714257044975,-500.0,0.00019178,2]
[323764826,1714257044984,-500.0,0.00019178,2]
[323764827,1714257044993,-500.0,0.00019178,2]
[323764828,1714257045002,-500.0,0.00019178,2]
[323764829,1714257045011,-500.0,0.00019178,2]
[323764830,1714257045021,-500.0,0.00019178,2]
[323764831,1714257045029,-500.0,0.00019178,2]
[323764832,1714257045039,-500.0,0.00019178,2]
[323764833,1714257045048,-500.0,0.00019178,2]
[323764834,1714257045058,-500.0,0.00019178,2]
[323764835,1714257045068,-500.0,0.00019178,2]
[323764836,1714257045077,-500.0,0.00019178,2]
[323764837,1714257045086,-500.0,0.00019178,2]
[323764838,1714257045096,-1135.90092692,0.00019178,2]
[323764839,1714257045106,-1135.90092692,0.00019178,2]
[323764840,1714257045116,-1135.90092692,0.00019178,2]
[323764841,1714257045125,-1135.90092692,0.00019178,2]
[323764842,1714257045135,-1135.90092692,0.00019178,2]
[323764843,1714257045145,-1135.90092692,0.00019178,2]
[323764844,1714257045154,-1135.90092692,0.00019178,2]
[323764845,1714257045163,-1135.90092692,0.00019178,2]
[323764846,1714257045172,-1135.90092692,0.00019178,2]
[323764847,1714257045182,-1135.90092692,0.00019178,2]
[323764848,1714257045191,-1135.90092692,0.00019178,2]
[323764849,1714257045202,-1135.90092692,0.00019178,2]
[323764850,1714257045212,-1135.90092692,0.00019178,2]
[323764851,1714257045222,-1135.90092692,0.00019178,2]
[323764852,1714257045232,-1135.90092692,0.00019178,2]
[323764853,1714257045242,-1135.90092692,0.00019178,2]
[323764854,1714257045253,-1135.90092692,0.00019178,2]
[323764855,1714257045262,-1135.90092692,0.00019178,2]
[323764856,1714257045272,-1135.90092692,0.00019178,2]
[323764857,1714257045281,-1135.90092692,0.00019178,2]
[323764858,1714257045291,-1135.90092692,0.00019178,2]
[323764859,1714257045301,-1135.90092692,0.00019178,2]
[323764860,1714257045311,-1135.90092692,0.00019178,2]
[323764861,1714257045321,-1135.90092692,0.00019178,2]
[323764862,1714257045331,-1135.90092692,0.00019178,2]
[323764863,1714257045341,-1135.90092692,0.00019178,2]
[323764864,1714257045352,-1135.90092692,0.00019178,2]
[323764865,1714257045362,-1135.90092692,0.00019178,2]
[323764866,1714257045371,-1135.90092692,0.00019178,2]
[323764867,1714257045381,-1135.90092692,0.00019178,2]
[323764868,1714257045391,-1135.90092692,0.00019178,2]
[323764869,1714257045400,-1135.90092692,0.00019178,2]
[323764870,1714257045411,-1135.90092681,0.00019178,2]
[323764871,1714257045421,-364.18778928,0.00019178,2]
[323764872,1714257045430,-500.0,0.00019178,2]
[323764873,1714257045440,-500.0,0.00019178,2]
[323764874,1714257045451,-500.0,0.00019178,2]
[323764875,1714257045462,-500.0,0.00019178,2]
[323764876,1714257045472,-500.0,0.00019178,2]
[323764877,1714257045481,-500.0,0.00019178,2]
[323764878,1714257045491,-301.00152799,0.00019178,2]
[323764879,1714257045503,-500.0,0.00019178,2]
[323764880,1714257045513,-500.0,0.00019178,2]
[323764881,1714257045525,-500.0,0.00019178,2]
[323764882,1714257045535,-500.0,0.00019178,2]
[323764883,1714257045547,-500.0,0.00019178,2]
[323764884,1714257045557,-500.0,0.00019178,2]
[323764885,1714257045568,-500.0,0.00019178,2]
[323764886,1714257045578,-500.0,0.00019178,2]
[323764887,1714257045587,-500.0,0.00019178,2]
[323764888,1714257045596,-500.0,0.00019178,2]
[323764889,1714257045606,-500.0,0.00019178,2]
[323764890,1714257045615,-500.0,0.00019178,2]
[323764891,1714257045624,-500.0,0.00019178,2]
[323764892,1714257045633,-500.0,0.00019178,2]
[323764893,1714257045643,-500.0,0.00019178,2]
[323764894,1714257045652,-500.0,0.00019178,2]
[323764895,1714257045661,-500.0,0.00019178,2]
[323764896,1714257045670,-500.0,0.00019178,2]
[323764897,1714257045681,-644.38107229,0.00019178,2]
[323764898,1714257045690,-500.0,0.00019178,2]
[323764899,1714257045700,-500.0,0.00019178,2]
[323764900,1714257045710,-500.0,0.00019178,2]
[323764901,1714257045720,-500.0,0.00019178,2]
[323764902,1714257045729,-500.0,0.00019178,2]
[323764903,1714257045739,-500.0,0.00019178,2]
[323764904,1714257045749,-500.0,0.00019178,2]
[323764905,1714257045759,-500.0,0.00019178,2]
[323764906,1714257045768,-500.0,0.00019178,2]
[323764907,1714257045777,-500.0,0.00019178,2]
[323764908,1714257045786,-500.0,0.00019178,2]
[323764909,1714257045795,-500.0,0.00019178,2]
[323764910,1714257045805,-500.0,0.00019178,2]
[323764911,1714257045817,-500.0,0.00019178,2]
[323764912,1714257045826,-500.0,0.00019178,2]
[323764913,1714257045836,-500.0,0.00019178,2]
[323764914,1714257045845,-500.0,0.00019178,2]
[323764915,1714257045855,-500.0,0.00019178,2]
[323764916,1714257045865,-166.42016772,0.00019178,2]
[323764917,1714257045874,-500.0,0.00019178,2]
[323764918,1714257045883,-500.0,0.00019178,2]
[323764919,1714257045892,-500.0,0.00019178,2]
[323764920,1714257045901,-500.0,0.00019178,2]
[323764921,1714257045910,-500.0,0.00019178,2]
[323764922,1714257045920,-150.0,0.00019178,2]
[323764923,1714257045929,-500.0,0.00019178,2]
[323764924,1714257045939,-500.0,0.00019178,2]
[323764925,1714257045948,-500.0,0.00019178,2]
[323764926,1714257045958,-500.0,0.00019178,2]
[323764927,1714257045966,-500.0,0.00019178,2]
[323764928,1714257045975,-3124.08,0.00019178,2]
[323764929,1714257045985,-4000.0,0.00019178,2]
[323764930,1714257045994,-200.0,0.00019178,2]
[323764931,1714257046003,-2785.57,0.000192,2]
[323764932,1714257046012,-2395.74,0.000192,2]
[323764933,1714257046021,-2656.27,0.000192,2]
[323764934,1714257046030,-17966.0,0.000192,2]
[323764935,1714257046041,-155.41334563,0.00019217,2]
[323764936,1714257046051,-2927.2044767,0.00019401,2]
[323764937,1714257046061,-150.39209227,0.00019455,2]
[323764938,1714257046070,-2200.0,0.00019463,7]
[323764939,1714257046080,-733.0,0.000195,7]
[323764940,1714257046089,-1500.0,0.000195,2]
[323764941,1714257046098,-150.0,0.000195,2]
[323764942,1714257046109,-150.0,0.000195,2]
[323764943,1714257046118,-155.41334563,0.00019513,2]
[323764944,1714257046127,-151.91094988,0.00019528,2]
[323764945,1714257046137,-155.41334563,0.00019566,2]
[323764946,1714257046147,-165.03,0.0001957,15]
[323764947,1714257046155,-150.5,0.0001958,15]
[323764948,1714257046165,-150.5,0.0001959,15]
[323764949,1714257046174,-1000.0,0.000196,2]
[323764950,1714257046183,-17680.0,0.000196,3]
[323764951,1714257046192,-90043.41635457,0.00019769,2]
[323764952,1714257046201,-14451.39420955,0.00019803,2]
[323764953,1714257046211,-706.0,0.00019836,2]
[323764954,1714257046220,-166.66666666,0.00019876,2]
[323764955,1714257046230,-4555.46320682,0.000199,3]
[323764956,1714257046240,-359.48953754,0.000199,2]
[323764957,1714257046249,-359.48953673,0.000199,2]
[323764958,1714257046258,-1013.82,0.00019975,2]
[323764959,1714257046268,-198.46,0.0001998,15]
[323764960,1714257046278,-150.5,0.0001999,15]
[323764961,1714257046288,-535.02688076,0.00019999,2]
[323764962,1714257046299,-50000.0,0.0002,2]
[323764963,1714257046309,-1767.26711119,0.0002,2]
[323764964,1714257046319,-1257.95790008,0.0002,2]
[323764965,1714257046329,-357.33032765,0.0002,2]
[323764966,1714257046339,-1650.45142225,0.0002,2]
[323764967,1714257046348,-155.0,0.0002,2]
[323764968,1714257046358,-195.51084524,0.0002,2]
[323764969,1714257046367,-9926.9845841,0.0002,2]
[323764970,1714257046375,-6296.81136878,0.0002,2]
[323764971,1714257046385,-11943.6536638,0.0002,2]
[323764972,1714257046394,-173.04210069,0.0002,2]
[323764973,1714257046403,-356.0,0.0002,2]
[323764974,1714257046413,-188.0,0.0002,2]
[323764975,1714257046422,-40000.0,0.0002,5]
[323764976,1714257046432,-22079.38776374,0.0002,2]
[323764977,1714257046442,-188.0,0.0002,2]
[323764978,1714257046452,-713.0,0.0002,2]
[323764979,1714257046465,-150000.0,0.0002,2]
[323764980,1714257046475,-3001.39,0.0002,2]
[323764981,1714257046485,-3000.0,0.0002,2]
[323764982,1714257046494,-3000.0,0.0002,2]
[323764983,1714257046503,-3000.0,0.0002,2]
[323764984,1714257046513,-3007.8,0.0002,2]
[323764985,1714257046522,-276.87245795,0.0002,2]
[323764986,1714257046532,-807.84,0.0002,2]
[323764987,1714257046543,-155.24810116,0.0002,2]
[323764988,1714257046555,-3034.689823,0.0002,5]
[323764989,1714257046566,-1013.55930899,0.0002,2]
[323764990,1714257046575,-199.70715024,0.0002,2]
[323764991,1714257046585,-215.01210019,0.0002,2]
[323764992,1714257046594,-155.14678362,0.0002,2]
[323764993,1714257046605,-290.23444178,0.0002,2]
[323764994,1714257046614,-652.4,0.0002,2]
[323764995,1714257046624,-652.4,0.0002,2]
[323764996,1714257046635,-432.50531881,0.0002,2]
[323764997,1714257046646,-967.0,0.0002,2]
[323764998,1714257046655,-967.0,0.0002,2]
[323764999,1714257046666,-2461.43205215,0.0002,2]
[323765000,1714257046676,-2553.13583522,0.0002,2]
[323765001,1714257046685,-150.0,0.0002,2]
[323765002,1714257046694,-713.0,0.0002,2]
[323765003,1714257046703,-200.0,0.0002,2]
[323765004,1714257046714,-176.0,0.0002,2]
[323765005,1714257046724,-200.0,0.0002,2]
[323765006,1714257046733,-176.0,0.0002,2]
[323765007,1714257046743,-1000.0,0.0002,3]
[323765008,1714257046752,-4000.0,0.0002,4]
[323765009,1714257046761,-4000.0,0.0002,3]
[323765010,1714257046770,-2692.60823356,0.0002,7]
[323765011,1714257046780,-356.0,0.0002,2]
[323765012,1714257046788,-644.0,0.0002,2]
[323765013,1714257046798,-3728.71193034,0.0002,2]
[323765014,1714257046807,-3950.0,0.0002,2]
[323765015,1714257046816,-3568.0,0.0002,2]
[323765016,1714257046825,-2464.0,0.0002,2]
[323765017,1714257046834,-356.0,0.0002,2]
[323765018,1714257046843,-188.0,0.0002,2]
[323765019,1714257046853,-150.0,0.0002,2]
[323765020,1714257046861,-180.30736737,0.0002,2]
[323765021,1714257046871,-733.0,0.0002,7]
[323765022,1714257046880,-175.74558794,0.0002,2]
[323765023,1714257046889,-312.3,0.0002,2]
[323765024,1714257046900,-200.0,0.0002,2]
[323765025,1714257046910,-200.0,0.0002,2]
[323765026,1714257046920,-3526.49127301,0.0002,2]
[323765027,1714257047070,-1500.0,0.0002,2]
[323765028,1714257047079,-275.5,0.0002,2]
[323765029,1714257047088,-17680.0,0.0002,5]
[323765030,1714257047098,-150.0,0.0002,2]
[323765031,1714257047107,-150.0,0.0002,2]
[323765032,1714257047116,-1000.0,0.0002,2]
[323765033,1714257047125,-155.41334563,0.00020028,2]
[323765034,1714257047135,-155.41334563,0.00020124,2]
[323765035,1714257047145,-2785.57,0.000202,2]
[323765036,1714257047155,-2395.74,0.000202,2]
[323765037,1714257047164,-2656.27,0.000202,2]
[323765038,1714257047173,-511.544529,0.0002038,2]
[323765039,1714257047182,-733.0,0.000205,8]
[323765040,1714257047191,-150.0,0.000205,2]
[323765041,1714257047200,-706.0,0.00020521,2]
[323765042,1714257047209,-150.0,0.00020526,2]
[323765043,1714257047218,-173.28,0.00020548,2]
[323765044,1714257047228,-20063.23914733,0.0002066,2]
[323765045,1714257047236,-3636.0797825,0.000209,2]
[323765046,1714257047246,-3636.07978249,0.000209,2]
[323765047,1714257047255,-3636.07978249,0.000209,2]
[323765048,1714257047264,-3636.07978249,0.000209,2]
[323765049,1714257047274,-3636.07978249,0.000209,2]
[323765050,1714257047283,-3636.07978249,0.000209,2]
[323765051,1714257047292,-3636.07978249,0.000209,2]
[323765052,1714257047301,-3636.07978249,0.000209,2]
[323765053,1714257047311,-3636.07978249,0.000209,2]
[323765054,1714257047320,-3636.07978249,0.000209,2]
[323765055,1714257047329,-3636.07978249,0.000209,2]
[323765056,1714257047338,-3636.07978249,0.000209,2]
[323765057,1714257047348,-3636.07978249,0.000209,2]
[323765058,1714257047358,-3636.07978249,0.000209,2]
[323765059,1714257047366,-3636.07978249,0.000209,2]
[323765060,1714257047376,-3636.07978249,0.000209,2]
[323765061,1714257047385,-3636.07978249,0.000209,2]
[323765062,1714257047395,-3636.07978249,0.000209,2]
[323765063,1714257047405,-3636.07978249,0.000209,2]
[323765064,1714257047417,-1118.76,0.000209,2]
[323765065,1714257047427,-1013.82,0.0002097,2]
[323765066,1714257047436,-50000.0,0.00021,2]
[323765067,1714257047445,-242334.40937,0.00021,2]
[323765068,1714257047491,-150.85,0.00019166,2]
[323765069,1714257047500,-181.15402996,0.00021,2]
[323765070,1714257047526,-2085.46216407,0.00021,2]
[323765071,1714257047623,-150.85,0.00019166,2]
[323765072,1714257047633,-349.15,0.000199,2]
[323765073,1714257048339,-1993.21324358,0.00018443,2]
[323765074,1714257048348,-150.85,0.00019166,2]
[323765075,1714257048357,-150.85,0.00019166,2]
[323765076,1714257048366,-150.85,0.00019168,2]
[323765077,1714257048376,-150.85,0.00019168,2]
[323765078,1714257048386,-150.85,0.00019168,2]
[323765079,1714257048396,-150.85,0.00019391,2]
[323765080,1714257048405,-10.33953673,0.000199,2]
[323765081,1714257048415,-359.48953673,0.000199,2]
[323765082,1714257048424,-359.48953673,0.000199,2]
[323765083,1714257048440,-359.48953673,0.000199,2]
[323765084,1714257048454,-3636.07978249,0.000209,2]
[323765085,1714257048465,-119.9645715,0.00021,2]
[323765086,1714257048478,-688.15700002,0.00021,2]
[323765087,1714257048621,-359.48953673,0.000199,2]
[323765088,1714257048630,-159.91856327,0.00021,2]
[323765089,1714257048652,-268.00543851,0.00018428,2]
[323765090,1714257048662,-254430.93430118,0.00021,2]
[323765091,1714257048671,-1374.11660795,0.00021,2]
[323765092,1714257048681,-10010.53549168,0.00021,2]
[323765093,1714257048691,-4187.90840893,0.00021,3]
[323765094,1714257048700,-1431.69797974,0.00021,2]
[323765095,1714257048710,-2353.34362848,0.00021,2]
[323765096,1714257048719,-150.0,0.00021,2]
[323765097,1714257048728,-733.0,0.00021,9]
[323765098,1714257048738,-151.0,0.00021,2]
[323765099,1714257048747,-679.409001,0.00021,2]
[323765100,1714257048756,-679.409001,0.00021,2]
[323765101,1714257048765,-188.668789,0.00021,2]
[323765102,1714257048774,-151.0,0.00021,2]
[323765103,1714257048783,-151.0,0.00021,2]
[323765104,1714257048793,-151.0,0.00021,2]
[323765105,1714257048802,-2000.0,0.00021,2]
[323765106,1714257048812,-3525.0,0.00021,2]
[323765107,1714257048822,-275.5,0.00021,2]
[323765108,1714257048832,-150.0,0.00021,2]
[323765109,1714257048841,-2000.0,0.0002101,2]
[323765110,1714257048851,-2000.0,0.0002102,2]
[323765111,1714257048860,-2927.2044767,0.00021026,2]
[323765112,1714257048870,-2000.0,0.0002103,2]
[323765113,1714257048879,-158.93910972,0.00021036,2]
[323765114,1714257048888,-2000.0,0.0002104,2]
[323765115,1714257048898,-2000.0,0.0002105,2]
[323765116,1714257048907,-4582.8,0.00021052,2]
[323765117,1714257048917,-2000.0,0.0002106,2]
[323765118,1714257048926,-2000.0,0.0002107,2]
[323765119,1714257048936,-2000.0,0.0002108,2]
[323765120,1714257048945,-2165.60659,0.0002109,2]
[323765121,1714257048955,-153.81143221,0.00021103,2]
[323765122,1714257048964,-159.19983189,0.00021138,2]
[323765123,1714257048973,-5000.0,0.00021146,2]
[323765124,1714257048982,-90043.41635457,0.00021161,2]
[323765125,1714257048991,-5000.0,0.00021179,2]
[323765126,1714257049000,-5000.0,0.00021186,2]
[323765127,1714257049009,-14451.39420955,0.00021186,2]
[323765128,1714257049019,-706.0,0.00021205,2]
[323765129,1714257049033,-5000.0,0.00021264,2]
[323765130,1714257049044,-5000.0,0.00021278,2]
[323765131,1714257049053,-5000.0,0.00021278,2]
[323765132,1714257049063,-5000.0,0.0002128,2]
[323765133,1714257049072,-5000.0,0.00021307,2]
[323765134,1714257049081,-10000.0,0.00021332,2]
[323765135,1714257049091,-5000.0,0.00021335,2]
[323765136,1714257049101,-153.81143221,0.00021336,2]
[323765137,1714257049110,-2980.86,0.0002137,2]
[323765138,1714257049120,-13412.7679652,0.000214,2]
[323765139,1714257049129,-2785.57,0.000214,2]
[323765140,1714257049139,-2395.74,0.000214,2]
[323765141,1714257049151,-2656.27,0.000214,2]
[323765142,1714257049161,-535.02688076,0.00021419,2]
[323765143,1714257049170,-5000.0,0.00021441,2]
[323765144,1714257049179,-370.39,0.00021452,2]
[323765145,1714257049359,-349.4,0.00021452,2]
[323765146,1714257049369,-12556.22,0.00021473,2]
[323765147,1714257049378,-151.0,0.00021473,2]
[323765148,1714257049387,-151.0,0.00021473,2]
[323765149,1714257049396,-398.013142,0.00021473,2]
[323765150,1714257049405,-398.013142,0.00021473,2]
[323765151,1714257049414,-151.0,0.00021473,2]
[323765152,1714257049423,-153.81143221,0.00021485,2]
[323765153,1714257049432,-733.0,0.000215,9]
[323765154,1714257049443,-150.0,0.000215,3]
[323765155,1714257049453,-153.81143221,0.00021552,2]
[323765156,1714257049464,-5000.0,0.00021576,2]
[323765157,1714257049475,-25000.0,0.00021589,2]
[323765158,1714257049485,-151.0,0.00021589,2]
[323765159,1714257049494,-967.601542,0.00021589,2]
[323765160,1714257049503,-967.601542,0.00021589,2]
[323765161,1714257049513,-5000.0,0.00021597,2]
[323765162,1714257049524,-5000.0,0.00021629,2]
[323765163,1714257049533,-150.0,0.00021641,2]
[323765164,1714257049543,-700.94,0.00021641,2]
[323765165,1714257049552,-522.23,0.00021641,2]
[323765166,1714257049561,-522.23,0.00021641,2]
[323765167,1714257049571,-150.0,0.00021641,2]
[323765168,1714257049580,-509.4,0.00021641,2]
[323765169,1714257049590,-150.0,0.00021641,2]
[323765170,1714257049599,-151.0,0.00021641,2]
[323765171,1714257049608,-5000.0,0.00021649,2]
[323765172,1714257049617,-7706.68,0.000217,2]
[323765173,1714257049626,-7706.68,0.000217,2]
[323765174,1714257049636,-7706.68,0.000217,2]
[323765175,1714257049645,-7706.68,0.000217,2]
[323765176,1714257049654,-7706.68,0.000217,2]
[323765177,1714257049663,-7706.68,0.000217,2]
[323765178,1714257049672,-7706.68,0.000217,2]
[323765179,1714257049681,-7706.68,0.000217,2]
[323765180,1714257049691,-7706.68,0.000217,2]
[323765181,1714257049700,-7706.68,0.000217,2]
[323765182,1714257049709,-7706.68,0.000217,2]
[323765183,1714257049719,-7706.68,0.000217,2]
[323765184,1714257049728,-7706.68,0.000217,2]
[323765185,1714257049738,-7706.68,0.000217,2]
[323765186,1714257049747,-7706.68,0.000217,2]
[323765187,1714257049757,-7706.68,0.000217,2]
[323765188,1714257049766,-7706.68,0.000217,2]
[323765189,1714257049776,-7706.68,0.000217,2]
[323765190,1714257049785,-7706.68,0.000217,2]
[323765191,1714257049795,-7706.68,0.000217,2]
[323765192,1714257049804,-151.0,0.000217,2]
[323765193,1714257049813,-222.814935,0.000217,2]
[323765194,1714257049822,-235.59759,0.000217,2]
[323765195,1714257049831,-151.0,0.000217,2]
[323765196,1714257049841,-151.0,0.000217,2]
[323765197,1714257049851,-151.0,0.000217,2]
[323765198,1714257049860,-151.0,0.000217,2]
[323765199,1714257049870,-151.0,0.000217,2]
[323765200,1714257049879,-151.0,0.000217,2]
[323765201,1714257049888,-151.0,0.000217,2]
[323765202,1714257049897,-5000.0,0.00021708,2]
[323765203,1714257049906,-5000.0,0.00021718,2]
[323765204,1714257049916,-604.57,0.00021746,2]
[323765205,1714257049925,-153.81143221,0.0002176,2]
[323765206,1714257049934,-5000.0,0.00021851,2]
[323765207,1714257049944,-706.0,0.0002189,2]
[323765208,1714257049953,-12963.03969405,0.000219,2]
[323765209,1714257049962,-753.33261,0.00021918,7]
[323765210,1714257049971,-250.0,0.00021918,2]
[323765211,1714257049981,-2000.0,0.00021918,2]
[323765212,1714257049990,-550.0,0.00021918,2]
[323765213,1714257049999,-550.0,0.00021918,2]
[323765214,1714257050008,-425.36,0.00021918,2]
[323765215,1714257050018,-200.0,0.00021918,2]
[323765216,1714257050027,-500.0,0.00021918,2]
[323765217,1714257050036,-500.0,0.00021918,2]
[323765218,1714257050046,-500.0,0.00021918,2]
[323765219,1714257050055,-500.0,0.00021918,2]
[323765220,1714257050066,-500.0,0.00021918,2]
[323765221,1714257050074,-500.0,0.00021918,2]
[323765222,1714257050083,-150.0,0.00021918,2]
[323765223,1714257050093,-150.0,0.00021918,2]
[323765224,1714257050102,-150.0,0.00021918,2]
[323765225,1714257050112,-150.0,0.00021918,2]
[323765226,1714257050122,-150.0,0.00021918,2]
[323765227,1714257050132,-150.0,0.00021918,2]
[323765228,1714257050142,-150.0,0.00021918,2]
[323765229,1714257050151,-150.0,0.00021918,2]
[323765230,1714257050161,-150.0,0.00021918,2]
[323765231,1714257050170,-150.0,0.00021918,2]
[323765232,1714257050179,-150.0,0.00021918,2]
[323765233,1714257050189,-150.0,0.00021918,2]
[323765234,1714257050198,-150.0,0.00021918,2]
[323765235,1714257050207,-150.0,0.00021918,2]
[323765236,1714257050217,-150.0,0.00021918,2]
[323765237,1714257050226,-151.0,0.00021918,2]
[323765238,1714257050235,-150.0,0.00021918,2]
[323765239,1714257050244,-150.0,0.00021918,2]
[323765240,1714257050254,-150.0,0.00021918,2]
[323765241,1714257050264,-150.0,0.00021918,2]
[323765242,1714257050274,-150.0,0.00021918,2]
[323765243,1714257050283,-150.0,0.00021918,2]
[323765244,1714257050293,-150.0,0.00021918,2]
[323765245,1714257050302,-153.81143221,0.00021934,2]
[323765246,1714257050311,-1013.82,0.00021965,2]
[323765247,1714257050321,-5000.0,0.00021991,2]
[323765248,1714257050331,-50000.0,0.00022,2]
[323765249,1714257050341,-1200.0,0.00022,23]
[323765250,1714257050350,-953.31433581,0.00022,2]
[323765251,1714257050359,-238.95864603,0.00022,2]
[323765252,1714257050369,-1055.47776845,0.00022,2]
[323765253,1714257050378,-200.0,0.00022,2]
[323765254,1714257050388,-155.261,0.00022,2]
[323765255,1714257050397,-733.0,0.00022,10]
[323765256,1714257050406,-150.0,0.00022,3]
[323765257,1714257050415,-153.74189847,0.00022023,2]
[323765258,1714257050425,-153.81143221,0.00022046,2]
[323765259,1714257050433,-155.41334571,0.00022202,2]
[323765260,1714257050442,-152.45200581,0.00022236,2]
[323765261,1714257050451,-382.945003,0.0002225,2]
[323765262,1714257050461,-156.12701639,0.00022266,2]
[323765263,1714257050473,-500.0,0.0002232,10]
[323765264,1714257050482,-500.0,0.0002232,10]
[323765265,1714257050492,-500.0,0.0002232,10]
[323765266,1714257050501,-500.0,0.0002232,10]
[323765267,1714257050511,-500.0,0.0002232,10]
[323765268,1714257050520,-500.0,0.0002232,10]
[323765269,1714257050529,-500.0,0.0002232,10]
[323765270,1714257050540,-500.0,0.0002232,10]
[323765271,1714257050549,-500.0,0.0002232,10]
[323765272,1714257050558,-500.0,0.0002232,10]
[323765273,1714257050568,-500.0,0.0002232,10]
[323765274,1714257050577,-500.0,0.0002232,10]
[323765275,1714257050586,-500.0,0.0002232,10]
[323765276,1714257050596,-500.0,0.0002232,10]
[323765277,1714257050605,-500.0,0.0002232,10]
[323765278,1714257050615,-500.0,0.0002232,10]
[323765279,1714257050624,-500.0,0.0002232,10]
[323765280,1714257050633,-500.0,0.0002232,10]
[323765281,1714257050643,-500.0,0.0002232,10]
[323765282,1714257050652,-500.0,0.0002232,10]
[323765283,1714257050662,-500.0,0.0002232,10]
[323765284,1714257050671,-500.0,0.0002232,10]
[323765285,1714257050680,-500.0,0.0002232,10]